[Event "Charlotte Spring-E 2022"]
[Site "Charlotte"]
[Date "2022.03.17"]
[Round "2.1"]
[White "Chiku-Ratte, Olivier-Kenta"]
[Black "Chasin, Nico"]
[Result "0-1"]
[ECO "E54"]
[WhiteElo "2382"]
[BlackElo "2270"]
[Annotator "ChessBase"]
[PlyCount "64"]
[EventDate "2022.03.16"]
[EventType "tourn"]
[EventCountry "USA"]
[SourceTitle "playchess.com"]
[Source "ChessBase"]
[SourceQuality "1"]
[TimeControl "5400+30"]

1. d4 {[%emt 1:31:00]} Nf6 {[%emt 1:31:00]} 2. c4 {[%emt 0:00:00]} e6 {[%emt 0:00:00]} 3. Nf3 {[%emt 0:00:00]} d5 {[%emt 0:00:00]} 4. Nc3 {[%emt 0:00:00]} Bb4 {[%emt 0:00:00]} 5. e3 {[%emt 0:00:00]} O-O {[%emt 0:00:00]} 6. Bd3 {[%emt 0:00:00]} c5 {[%emt 0:00:00]} 7. O-O {[%emt 0:00:00]} cxd4 {[%emt 0:00:00]} 8. exd4 {[%emt 0:00:00]} dxc4 {[%emt 0:00:00]} 9. Bxc4 {[%emt 0:00:00]} h6 {[%emt 0:00:00]} 10. Qb3 {[%emt 0:00:00]} Nc6 {[%emt 0:00:00]} 11. d5 {[%emt 0:00:00]} exd5 {[%emt 0:00:00]} 12. Nxd5 {[%emt 0:00:00]} Bd6 {[%emt 0:00:00]} 13. Nxf6+ {[%emt 0:00:00]} Qxf6 {[%emt 0:00:00]} 14. Bd5 {[%emt 0:00:00]} Nb4 {[%emt 0:00:00]} 15. Be3 {[%emt 0:00:00]} Bg4 {[%emt 0:00:00]} 16. Bxb7 {[%emt 0:00:00]} Rab8 {[%emt 0:00:00]} 17. Be4 {[%emt 0:00:00]} Rfe8 {[%emt 0:00:00]} 18. Bxa7 {[%emt 0:00:00]} Rxe4 {[%emt 0:00:00]} 19. Bxb8 {[%emt 0:00:00]} Bxb8 {[%emt 0:00:00]} 20. Rfe1 {[%emt 0:00:00]} Bxf3 {[%emt 0:00:00]} 21. Qxf3 {[%emt 0:02:21]} Bxh2+ {[%emt 0:00:00]} 22. Kh1 {[%emt 0:01:12]} Rh4 {[%emt 0:00:00]} 23. Qxf6 {[%emt 0:07:27]} gxf6 {[%emt 0:00:00]} 24. Re2 {[%emt 0:00:00]} Nd3 {[%emt 0:00:00]} 25. a4 {[%emt 0:00:00]} Nxb2 {[%emt 0:00:00]} 26. a5 {[%emt 0:00:00]} Nd3 {[%emt 0:00:00]} 27. Raa2 {[%emt 0:00:28]} Be5+ {[%emt 0:00:00]} 28. Kg1 {[%emt 0:00:03]} Nc1 {[%emt 0:00:00]} 29. a6 {[%emt 0:01:52]} Nxe2+ {[%emt 0:00:00]} 30. Kf1 {[%emt 0:00:25]} Nc3 {[%emt 0:00:00]} 31. g4 {[%emt 0:00:41]} Bd4 {[%emt 0:00:00]} 32. Rd2 {[%emt 0:00:29]} Rxg4 {[%emt 0:00:00]} 0-1

[Event "Charlotte Spring-E 2022"]
[Site "Charlotte"]
[Date "2022.03.17"]
[Round "2.2"]
[White "Kanli, Alperen"]
[Black "Yang, Qindong"]
[Result "1-0"]
[ECO "E20"]
[WhiteElo "2131"]
[BlackElo "2084"]
[Annotator "ChessBase"]
[PlyCount "65"]
[EventDate "2022.03.16"]
[EventType "tourn"]
[EventCountry "USA"]
[SourceTitle "playchess.com"]
[Source "ChessBase"]
[SourceQuality "1"]
[TimeControl "5400+30"]

1. d4 {[%emt 0:00:02]} Nf6 {[%emt 0:00:19]} 2. c4 {[%emt 0:00:39]} e6 {[%emt 0:00:02]} 3. Nc3 {[%emt 0:00:22]} Bb4 {[%emt 0:00:25]} 4. f3 {[%emt 0:00:16]} c5 {[%emt 0:02:18]} 5. d5 {[%emt 0:00:31]} b5 {[%emt 0:00:34]} 6. e4 {[%emt 0:02:12]} d6 {[%emt 0:00:31]} 7. Nge2 {[%emt 0:02:24]} O-O {[%emt 1:29:51]} 8. Nf4 {[%emt 1:28:04]} e5 {[%emt 0:00:00]} 9. Nfe2 {[%emt 0:00:30]} bxc4 {[%emt 0:00:00]} 10. Ng3 {[%emt 0:00:00]} Nbd7 {[%emt 0:01:30]} 11. Be2 {[%emt 0:01:00]} Nb6 {[%emt 0:00:30]} 12. O-O {[%emt 0:00:30]} Bd7 {[%emt 0:00:00]} 13. f4 {[%emt 0:00:30]} Ne8 {[%emt 0:01:00]} 14. fxe5 {[%emt 0:00:00]} dxe5 {[%emt 0:00:30]} 15. Bg4 {[%emt 0:01:00]} Nd6 {[%emt 0:00:30]} 16. Qf3 {[%emt 0:00:30]} Rb8 {[%emt 0:00:30]} 17. Nce2 {[%emt 0:00:30]} Qc8 {[%emt 0:00:00]} 18. Bxd7 Qxd7 {[%emt 0:01:00]} 19. Be3 {[%emt 0:01:00]} Na4 {[%emt 0:00:30]} 20. Rab1 {[%emt 0:00:30]} Rfc8 {[%emt 0:00:30]} 21. Nh5 {[%emt 0:00:30]} Ne8 {[%emt 0:00:30]} 22. Neg3 {[%emt 0:00:00]} Rb6 {[%emt 0:00:00]} 23. Nf5 {[%emt 0:01:00]} Kh8 {[%emt 0:00:00]} 24. d6 {[%emt 0:00:00]} f6 {[%emt 0:00:00]} 25. Nfxg7 {[%emt 0:00:00]} Rxd6 {[%emt 0:00:00]} 26. Nxe8 {[%emt 0:00:00]} Qxe8 {[%emt 0:00:00]} 27. Nxf6 {[%emt 0:00:00]} Qg6 {[%emt 0:00:16]} 28. Nd5 {[%emt 0:00:00]} Re8 {[%emt 0:01:08]} 29. h4 {[%emt 0:00:00]} Nb6 {[%emt 0:00:50]} 30. h5 {[%emt 0:00:00]} Qg7 {[%emt 0:01:05]} 31. h6 {[%emt 0:00:00]} Qg6 {[%emt 0:01:09]} 32. Ne7 {[%emt 0:00:00]} Qe6 {[%emt 0:00:18]} 33. Qf8+ {[%emt 0:00:00]} 1-0

[Event "Charlotte Spring-E 2022"]
[Site "Charlotte"]
[Date "2022.03.17"]
[Round "2.3"]
[White "Chen, Ryo"]
[Black "Rorrer, Grayson"]
[Result "0-1"]
[ECO "B92"]
[WhiteElo "2303"]
[BlackElo "2191"]
[Annotator "ChessBase"]
[PlyCount "88"]
[EventDate "2022.03.16"]
[EventType "tourn"]
[EventCountry "USA"]
[SourceTitle "playchess.com"]
[Source "ChessBase"]
[SourceQuality "1"]
[TimeControl "5400+30"]

1. e4 {[%emt 0:03:56]} c5 {[%emt 0:00:57]} 2. Nf3 {[%emt 0:00:17]} d6 {[%emt 0:00:15]} 3. d4 {[%emt 0:00:14]} cxd4 {[%emt 0:00:15]} 4. Nxd4 {[%emt 0:00:17]} Nf6 {[%emt 0:00:15]} 5. Nc3 {[%emt 0:00:10]} a6 {[%emt 0:00:17]} 6. Be2 {[%emt 0:00:34]} e5 {[%emt 0:00:19]} 7. Nb3 {[%emt 0:00:23]} Be7 {[%emt 0:00:20]} 8. O-O {[%emt 0:00:04]} O-O {[%emt 1:31:52]} 9. Bf3 Be6 {[%emt 0:00:00]} 10. a4 {[%emt 0:00:53]} Nbd7 {[%emt 0:00:00]} 11. a5 {[%emt 0:00:40]} Rc8 {[%emt 0:00:00]} 12. Be3 {[%emt 0:02:52]} Qc7 {[%emt 0:00:00]} 13. Re1 {[%emt 0:01:50]} Rfe8 {[%emt 0:00:00]} 14. Nd2 {[%emt 0:13:48]} h6 {[%emt 0:00:00]} 15. Nf1 {[%emt 0:14:19]} Qc6 {[%emt 0:00:00]} 16. Ng3 {[%emt 0:09:57]} Nf8 {[%emt 0:00:00]} 17. h3 {[%emt 0:09:45]} N8h7 {[%emt 0:00:00]} 18. h4 {[%emt 0:14:31]} Bd8 {[%emt 0:00:00]} 19. Nf1 {[%emt 0:04:52]} Nd7 {[%emt 0:00:00]} 20. g3 {[%emt 0:02:30]} Nhf6 {[%emt 0:00:00]} 21. Re2 {[%emt 0:02:07]} Nc5 {[%emt 0:00:00]} 22. Nd2 {[%emt 0:17:31]} b6 {[%emt 0:00:00]} 23. axb6 {[%emt 0:00:30]} Bxb6 {[%emt 0:00:00]} 24. Ra3 {[%emt 0:00:00]} Red8 {[%emt 0:00:00]} 25. b4 {[%emt 0:00:00]} Ncd7 {[%emt 0:00:00]} 26. Re1 {[%emt 0:00:00]} Bxe3 {[%emt 0:00:00]} 27. Rxe3 {[%emt 0:00:00]} Qb7 {[%emt 0:00:00]} 28. Qb1 {[%emt 0:00:43]} Nb6 {[%emt 0:00:00]} 29. Na4 {[%emt 0:01:43]} Nxa4 {[%emt 0:01:57]} 30. Rxa4 {[%emt 0:00:01]} d5 {[%emt 0:00:01]} 31. exd5 {[%emt 0:00:58]} Bxd5 {[%emt 0:00:07]} 32. Bxd5 {[%emt 0:00:32]} Nxd5 {[%emt 0:00:31]} 33. Rd3 {[%emt 0:00:30]} Nc3 {[%emt 0:00:06]} 34. Qb3 {[%emt 0:00:29]} Rxd3 {[%emt 0:00:30]} 35. cxd3 {[%emt 0:00:13]} Nxa4 {[%emt 0:00:15]} 36. Qxa4 {[%emt 0:00:12]} Rc1+ {[%emt 0:00:06]} 37. Nf1 {[%emt 0:00:06]} Qb5 {[%emt 0:00:08]} 38. Qa3 {[%emt 0:00:33]} Rd1 {[%emt 0:00:08]} 39. Qc3 {[%emt 0:00:16]} Qxd3 {[%emt 0:00:10]} 40. Qc8+ {[%emt 0:00:17]} Kh7 {[%emt 0:00:06]} 41. Qh3 {[%emt 0:00:12]} Qf3 {[%emt 0:00:25]} 42. h5 {[%emt 0:00:38]} e4 {[%emt 0:00:58]} 43. Qc8 {[%emt 0:00:40]} e3 {[%emt 0:00:07]} 44. Qc2+ {[%emt 0:00:09]} f5 {[%emt 0:00:02]} 0-1

[Event "Charlotte Spring-E 2022"]
[Site "Charlotte"]
[Date "2022.03.18"]
[Round "3.4"]
[White "Yang, Qindong"]
[Black "Chen, Ryo"]
[Result "1/2-1/2"]
[ECO "E65"]
[WhiteElo "2084"]
[BlackElo "2303"]
[Annotator "RC"]
[PlyCount "109"]
[EventDate "2022.03.16"]
[EventType "tourn"]
[EventCountry "USA"]
[SourceTitle "playchess.com"]
[Source "ChessBase"]
[SourceQuality "1"]
[TimeControl "5400+30"]

1. d4 {[%emt 0:01:54]} Nf6 {[%emt 0:00:03]} 2. c4 {[%emt 0:00:07]} g6 {[%emt 0:00:07]} 3. Nf3 {[%emt 0:00:13]} Bg7 {[%emt 0:00:06]} 4. g3 {[%emt 0:00:15]} O-O {[%emt 0:00:11]} 5. Bg2 {[%emt 0:00:02]} d6 {[%emt 1:32:33]} 6. O-O c5 {[%emt 0:00:30]} 7. dxc5 {[%emt 0:02:56]} dxc5 {[%emt 0:00:00]} 8. Nc3 {[%emt 1:29:03]} Nc6 {[%emt 0:01:00]} 9. Be3 {[%emt 0:00:30]} Be6 {[%emt 0:00:30]} 10. Bxc5 {[%emt 0:00:00]} Qa5 {[%emt 0:00:30]} 11. Ba3 {[%emt 0:00:00]} Bxc4 {[%emt 0:00:30]} 12. Nd2 {[%emt 0:01:30]} Be6 {[%emt 0:00:30]} 13. Qa4 {[%emt 0:00:30]} Qh5 {[%emt 0:00:30]} 14. Qb5 {[%emt 0:00:30]} Qxb5 {[%emt 0:00:00]} 15. Nxb5 {[%emt 0:00:30]} Rad8 {[%emt 0:00:00]} 16. Rfd1 Rd7 {[%emt 0:00:00]} 17. Nb3 a6 {[%emt 0:00:00]} 18. Nc3 {[%emt 0:01:30]} Bxb3 {[%emt 0:00:00]} 19. Rxd7 {[%emt 0:00:00]} Nxd7 {[%emt 0:00:00]} 20. axb3 {[%emt 0:00:00]} Ndb8 {[%emt 0:00:00]} 21. Rd1 {[%emt 0:00:00]} Rc8 {[%emt 0:00:00]} 22. Bc5 {[%emt 0:00:00]} Bf8 {[%emt 0:00:00]} 23. Bb6 {[%emt 0:00:00]} e6 {[%emt 0:00:00]} 24. Na4 {[%emt 0:00:00]} Be7 {[%emt 0:01:19]} 25. Nc5 {[%emt 0:00:00]} Bxc5 {[%emt 0:00:56]} 26. Bxc5 {[%emt 0:00:00]} Rd8 {[%emt 0:00:56]} 27. Rxd8+ {[%emt 0:00:00]} Nxd8 {[%emt 0:03:49]} 28. e3 {[%emt 0:00:00]} Ndc6 {[%emt 0:00:00]} 29. Kf1 {[%emt 0:00:00]} f6 {[%emt 0:00:00]} 30. Ke2 {[%emt 0:00:00]} Kf7 {[%emt 0:00:05]} 31. h4 {[%emt 0:00:00]} Nd7 {[%emt 0:01:05]} 32. Bd6 {[%emt 0:00:00]} f5 {[%emt 0:00:16]} 33. Kd3 e5 {[%emt 0:00:19]} 34. Bd5+ Kf6 {[%emt 0:01:45]} 35. f4 {[%emt 0:01:21]} e4+ {[%emt 0:00:00]} 36. Kc3 Nb6 {[%emt 0:01:00]} 37. Bxc6 {[%emt 0:04:01]} bxc6 {[%emt 0:00:00]} 38. Be5+ {[%emt 0:00:50]} Ke6 {[%emt 0:01:00]} 39. Bd4 {[%emt 0:00:13]} Nd7 {[%emt 0:00:30]} 40. Kc4 {[%emt 0:03:00]} a5 {[%emt 0:00:00]} 41. Bc5 {[%emt 0:01:10]} Nf6 {[%emt 0:00:09]} 42. Bd4 {[%emt 0:00:51]} Nd5 {[%emt 0:00:24]} 43. Kc5 {[%emt 0:00:25]} Kd7 {[%emt 0:01:27]} 44. Kc4 {[%emt 0:00:11]} Nb4 {[%emt 0:00:00]} 45. Bb6 {[%emt 0:00:38]} Nd3 {[%emt 0:00:01]} 46. Kc3 {[%emt 0:00:49]} Nf2 {[%emt 0:00:54]} 47. Bxa5 {[%emt 0:00:30]} Nh1 {[%emt 0:00:21]} 48. Kd4 {[%emt 0:00:21]} Nxg3 {[%emt 0:00:16]} 49. Ke5 {[%emt 0:00:07]} Nf1 {[%emt 0:00:23]} 50. Bb6 {[%emt 0:00:11]} Nh2 {[%emt 0:00:55]} 51. Kf6 {[%emt 0:00:09]} Ng4+ {[%emt 0:00:38]} 52. Kg7 {[%emt 0:00:30]} Ke6 {[%emt 0:00:16]} 53. Kxh7 {[%emt 0:00:17]} Kf7 {[%emt 0:00:04]} 54. Bd4 Nh2 {[%emt 0:00:44]} 55. Bb6 {[%emt 0:01:59]} 1/2-1/2

[Event "Charlotte Spring-E 2022"]
[Site "Charlotte"]
[Date "2022.03.18"]
[Round "4.1"]
[White "Chiku-Ratte, Olivier-Kenta"]
[Black "Kanli, Alperen"]
[Result "1-0"]
[ECO "D26"]
[WhiteElo "2382"]
[BlackElo "2131"]
[Annotator "ChessBase"]
[PlyCount "47"]
[EventDate "2022.03.16"]
[EventType "tourn"]
[EventCountry "USA"]
[SourceTitle "playchess.com"]
[Source "ChessBase"]
[SourceQuality "1"]
[TimeControl "5400+30"]

1. d4 {[%emt 0:01:43]} d5 {[%emt 0:00:11]} 2. c4 {[%emt 0:00:21]} dxc4 {[%emt 0:00:09]} 3. Nf3 {[%emt 0:00:14]} Nf6 {[%emt 0:00:11]} 4. e3 {[%emt 0:00:12]} e6 {[%emt 0:00:12]} 5. Bxc4 {[%emt 0:00:11]} a6 {[%emt 0:00:13]} 6. O-O {[%emt 0:03:23]} b5 {[%emt 0:00:06]} 7. Bd3 {[%emt 0:00:38]} Bb7 {[%emt 0:00:12]} 8. a4 {[%emt 0:01:21]} b4 {[%emt 0:00:02]} 9. Nbd2 {[%emt 0:00:05]} c5 {[%emt 0:00:07]} 10. e4 {[%emt 0:03:41]} c4 {[%emt 0:15:25]} 11. Bxc4 {[%emt 0:08:08]} Nxe4 {[%emt 0:00:44]} 12. Nxe4 {[%emt 0:12:47]} Bxe4 {[%emt 0:00:09]} 13. Re1 {[%emt 0:02:35]} Bd5 {[%emt 0:07:30]} 14. Bg5 {[%emt 0:05:16]} f6 {[%emt 0:22:20]} 15. Ne5 {[%emt 0:10:06]} fxg5 {[%emt 0:01:07]} 16. Qh5+ {[%emt 0:00:25]} g6 {[%emt 0:01:48]} 17. Nxg6 {[%emt 0:00:56]} hxg6 {[%emt 0:01:23]} 18. Qxg6+ {[%emt 0:01:04]} Kd7 {[%emt 0:47:41]} 19. Bxd5 {[%emt 0:01:44]} exd5 {[%emt 0:00:00]} 20. Rac1 Be7 {[%emt 0:01:00]} 21. Qe6+ {[%emt 0:01:23]} Ke8 {[%emt 0:00:00]} 22. Rc8 {[%emt 0:00:08]} Ra7 {[%emt 0:00:00]} 23. Rxd8+ {[%emt 0:00:21]} Kxd8 {[%emt 0:00:00]} 24. Qe5 {[%emt 0:00:02]} 1-0

[Event "Charlotte Spring-E 2022"]
[Site "Charlotte"]
[Date "2022.03.18"]
[Round "4.2"]
[White "Chen, Ryo"]
[Black "Chasin, Nico"]
[Result "0-1"]
[ECO "B48"]
[WhiteElo "2303"]
[BlackElo "2270"]
[Annotator "ChessBase"]
[PlyCount "90"]
[EventDate "2022.03.16"]
[EventType "tourn"]
[EventCountry "USA"]
[SourceTitle "playchess.com"]
[Source "ChessBase"]
[SourceQuality "1"]
[TimeControl "5400+30"]

1. e4 {[%emt 0:00:00]} c5 {[%emt 0:06:10]} 2. Nf3 {[%emt 0:00:01]} e6 {[%emt 0:00:08]} 3. d4 {[%emt 0:00:09]} cxd4 {[%emt 0:00:10]} 4. Nxd4 {[%emt 0:00:02]} Nc6 {[%emt 0:00:09]} 5. Nc3 {[%emt 0:00:07]} Qc7 {[%emt 0:00:05]} 6. Be3 {[%emt 0:00:24]} a6 {[%emt 0:00:10]} 7. g4 {[%emt 0:00:11]} b5 {[%emt 0:00:18]} 8. Nxc6 {[%emt 0:00:09]} Qxc6 {[%emt 0:00:09]} 9. Qd2 {[%emt 0:00:19]} b4 {[%emt 0:00:04]} 10. Ne2 {[%emt 0:00:06]} Qxe4 {[%emt 0:00:05]} 11. Rg1 {[%emt 0:00:12]} Qc6 {[%emt 0:00:05]} 12. Bg2 {[%emt 0:01:04]} d5 {[%emt 0:00:51]} 13. O-O-O {[%emt 0:00:27]} Nf6 {[%emt 0:00:34]} 14. g5 {[%emt 0:14:53]} Nd7 {[%emt 0:00:29]} 15. f4 {[%emt 0:05:15]} g6 {[%emt 0:08:47]} 16. Bd4 {[%emt 0:05:32]} Rg8 {[%emt 0:01:50]} 17. Kb1 {[%emt 0:04:28]} Bb7 {[%emt 0:08:33]} 18. Rc1 {[%emt 0:04:59]} Qb5 {[%emt 0:03:15]} 19. Ng3 {[%emt 0:13:34]} O-O-O {[%emt 0:10:27]} 20. Bf1 {[%emt 0:07:36]} Qa5 {[%emt 0:05:19]} 21. c4 {[%emt 0:09:21]} Kb8 {[%emt 0:00:18]} 22. cxd5 {[%emt 0:00:55]} Bxd5 {[%emt 0:00:45]} 23. Bc4 {[%emt 0:01:15]} Bb7 {[%emt 0:07:32]} 24. Rgd1 {[%emt 0:08:10]} Bc5 {[%emt 0:01:01]} 25. Qe3 {[%emt 0:08:33]} Bxd4 {[%emt 0:10:39]} 26. Rxd4 {[%emt 0:01:14]} Nc5 {[%emt 0:00:18]} 27. Qe5+ {[%emt 0:04:24]} Qc7 {[%emt 0:07:01]} 28. Rxd8+ {[%emt 0:05:07]} Rxd8 {[%emt 0:00:04]} 29. Qxc7+ {[%emt 0:00:37]} Kxc7 {[%emt 0:29:44]} 30. Bxa6 {[%emt 0:01:13]} Bxa6 {[%emt 0:00:00]} 31. Rxc5+ {[%emt 0:00:30]} Kb6 {[%emt 0:00:00]} 32. Re5 {[%emt 0:00:30]} Rd2 {[%emt 0:00:00]} 33. Ne4 {[%emt 0:05:43]} Rxh2 {[%emt 0:00:00]} 34. Nd6 {[%emt 0:00:00]} Bd3+ {[%emt 0:00:00]} 35. Kc1 {[%emt 0:00:00]} Rc2+ {[%emt 0:00:00]} 36. Kd1 {[%emt 0:00:00]} Rxb2 {[%emt 0:00:00]} 37. Re3 {[%emt 0:00:00]} Bc2+ {[%emt 0:04:00]} 38. Kc1 {[%emt 0:00:17]} Rxa2 {[%emt 0:00:00]} 39. Nxf7 {[%emt 0:00:26]} Bf5 {[%emt 0:01:00]} 40. Nd6 {[%emt 0:00:50]} Kc5 {[%emt 0:00:00]} 41. Nxf5 {[%emt 0:00:51]} exf5 {[%emt 0:00:00]} 42. Re7 {[%emt 0:00:21]} Rh2 {[%emt 0:00:00]} 43. Rc7+ {[%emt 0:00:21]} Kd4 {[%emt 0:00:00]} 44. Kb1 {[%emt 0:00:33]} Ke3 {[%emt 0:00:00]} 45. Rc4 {[%emt 0:00:08]} Rh4 {[%emt 0:03:00]} 0-1

[Event "Charlotte Spring-E 2022"]
[Site "Charlotte"]
[Date "2022.03.18"]
[Round "4.3"]
[White "Zaloznyy, Mike"]
[Black "Yang, Qindong"]
[Result "1/2-1/2"]
[ECO "B55"]
[WhiteElo "2065"]
[BlackElo "2084"]
[Annotator "ChessBase"]
[PlyCount "35"]
[EventDate "2022.03.16"]
[EventType "tourn"]
[EventCountry "USA"]
[SourceTitle "playchess.com"]
[Source "ChessBase"]
[SourceQuality "1"]
[TimeControl "5400+30"]

1. e4 {[%emt 0:00:24]} c5 {[%emt 0:00:26]} 2. Nf3 {[%emt 0:00:19]} d6 {[%emt 0:00:05]} 3. d4 {[%emt 0:00:09]} cxd4 {[%emt 0:00:04]} 4. Nxd4 {[%emt 0:00:08]} Nf6 {[%emt 0:00:03]} 5. f3 {[%emt 0:00:09]} e5 {[%emt 0:00:31]} 6. Nb3 {[%emt 0:00:09]} d5 {[%emt 0:00:08]} 7. Bg5 {[%emt 0:00:07]} Be6 {[%emt 0:00:40]} 8. Bxf6 {[%emt 0:00:47]} gxf6 {[%emt 0:00:08]} 9. exd5 {[%emt 0:00:13]} Qxd5 {[%emt 0:00:03]} 10. Qxd5 {[%emt 0:00:26]} Bxd5 {[%emt 0:00:03]} 11. Nc3 {[%emt 0:00:11]} Be6 {[%emt 0:01:11]} 12. O-O-O {[%emt 0:00:12]} Nc6 {[%emt 0:09:31]} 13. Ne4 {[%emt 0:06:06]} Ke7 {[%emt 0:06:02]} 14. Nbc5 {[%emt 0:02:31]} b6 {[%emt 0:03:32]} 15. Nxe6 {[%emt 0:07:40]} fxe6 {[%emt 0:00:14]} 16. Ba6 {[%emt 0:03:36]} Bh6+ {[%emt 0:07:00]} 17. Kb1 {[%emt 0:00:37]} Rad8 {[%emt 0:03:37]} 18. c3 {[%emt 0:09:43]} 1/2-1/2

[Event "Charlotte Spring-E 2022"]
[Site "Charlotte"]
[Date "2022.03.19"]
[Round "6.1"]
[White "Chiku-Ratte, Olivier-Kenta"]
[Black "Chen, Ryo"]
[Result "1-0"]
[ECO "E90"]
[WhiteElo "2382"]
[BlackElo "2303"]
[Annotator "NA"]
[PlyCount "83"]
[EventDate "2022.03.16"]
[EventType "tourn"]
[EventCountry "USA"]
[SourceTitle "playchess.com"]
[Source "ChessBase"]
[SourceQuality "1"]
[TimeControl "5400+30"]

1. d4 {[%emt 0:04:24]} Nf6 {[%emt 1:31:00]} 2. c4 {[%emt 0:00:29]} g6 {[%emt 0:00:00]} 3. Nc3 {[%emt 0:00:18]} Bg7 {[%emt 0:00:00]} 4. e4 {[%emt 0:00:09]} d6 {[%emt 0:00:00]} 5. h3 {[%emt 0:00:08]} O-O {[%emt 0:00:00]} 6. Nf3 {[%emt 0:00:08]} e5 {[%emt 0:00:00]} 7. d5 {[%emt 0:00:06]} a5 {[%emt 0:00:00]} 8. Bd3 {[%emt 0:06:12]} Na6 {[%emt 0:00:00]} 9. O-O {[%emt 0:00:07]} Nd7 {[%emt 0:00:00]} 10. Be3 {[%emt 0:05:43]} Ndc5 {[%emt 0:00:00]} 11. Bc2 {[%emt 0:00:31]} f5 {[%emt 0:00:00]} 12. exf5 {[%emt 1:18:15]} gxf5 {[%emt 0:00:00]} 13. Ne1 $11 {[%emt 0:00:00]} (13. a3 $142) 13... Qh4 {[%emt 0:00:00]} 14. f4 {[%emt 0:00:00]} e4 {[%emt 0:00:00]} 15. a3 {[%emt 0:00:00]} Bd7 {[%emt 0:00:00]} 16. Rb1 {[%emt 0:00:00]} Kf7 {[%emt 0:07:30]} 17. Nb5 {[%emt 0:02:30]} Bxb5 {[%emt 0:00:00]} 18. cxb5 Nb8 {[%emt 0:01:00]} 19. b4 {[%emt 0:01:00]} axb4 {[%emt 0:00:30]} 20. axb4 {[%emt 0:00:30]} Ncd7 {[%emt 0:00:00]} 21. Bb3 Rg8 {[%emt 0:00:00]} 22. Bf2 Qh6 {[%emt 0:01:30]} 23. Qc1 {[%emt 0:01:30]} Bf6 {[%emt 0:00:30]} 24. Kh2 {[%emt 0:00:30]} Bh4 {[%emt 0:00:00]} 25. Bd4 Qg6 {[%emt 0:01:00]} 26. Rb2 {[%emt 0:01:00]} Ra3 {[%emt 0:00:30]} 27. Kh1 {[%emt 0:00:00]} Ke7 {[%emt 0:00:00]} 28. Rg1 {[%emt 0:00:00]} Kd8 {[%emt 0:00:00]} 29. Rb1 {[%emt 0:00:00]} Ra8 {[%emt 0:00:41]} 30. Qc3 {[%emt 0:00:08]} Bf6 {[%emt 0:00:37]} 31. Nc2 {[%emt 0:00:28]} Bxd4 {[%emt 0:00:40]} 32. Nxd4 {[%emt 0:00:06]} Qf6 {[%emt 0:00:24]} 33. Ne6+ {[%emt 0:00:28]} Ke7 {[%emt 0:01:08]} 34. Qxc7 {[%emt 0:00:15]} Qh4 {[%emt 0:00:00]} 35. Nd4 {[%emt 0:00:35]} Qh5 {[%emt 0:00:17]} 36. Bd1 {[%emt 0:01:26]} Qg6 {[%emt 0:00:20]} 37. Qc3 {[%emt 0:00:35]} Nf6 {[%emt 0:01:23]} 38. g4 {[%emt 0:00:53]} fxg4 {[%emt 0:00:00]} 39. Bxg4 {[%emt 0:00:14]} Qf7 {[%emt 0:00:29]} 40. Nf5+ {[%emt 0:00:38]} Kd8 {[%emt 0:01:01]} 41. Nxd6 {[%emt 0:00:15]} Qf8 {[%emt 0:00:00]} 42. Qc8+ {[%emt 0:00:21]} 1-0

[Event "Charlotte Spring-E 2022"]
[Site "Charlotte"]
[Date "2022.03.19"]
[Round "6.2"]
[White "Zaloznyy, Mike"]
[Black "Kanli, Alperen"]
[Result "0-1"]
[ECO "A06"]
[WhiteElo "2065"]
[BlackElo "2131"]
[Annotator "NA"]
[PlyCount "88"]
[EventDate "2022.03.16"]
[EventType "tourn"]
[EventCountry "USA"]
[SourceTitle "playchess.com"]
[Source "ChessBase"]
[SourceQuality "1"]
[TimeControl "5400+30"]

1. Nf3 {[%emt 0:03:01]} d5 {[%emt 0:00:30]} 2. e3 {[%emt 0:00:16]} Nf6 {[%emt 0:00:26]} 3. b3 {[%emt 0:00:24]} c5 {[%emt 0:01:28]} 4. Bb2 {[%emt 0:00:22]} Nc6 {[%emt 0:00:16]} 5. Bb5 {[%emt 0:00:44]} e6 {[%emt 0:03:53]} 6. Bxc6+ {[%emt 0:05:36]} bxc6 {[%emt 0:00:09]} 7. Ne5 {[%emt 0:00:15]} Bd6 {[%emt 0:04:28]} 8. f4 {[%emt 0:00:53]} Qc7 {[%emt 0:01:28]} 9. d3 {[%emt 0:00:10]} O-O {[%emt 0:01:40]} 10. O-O {[%emt 0:02:53]} Nd7 {[%emt 0:05:36]} 11. Nxd7 {[%emt 0:00:12]} Bxd7 {[%emt 0:01:58]} 12. Qh5 {[%emt 0:00:08]} f6 {[%emt 0:03:34]} 13. Nd2 {[%emt 0:02:52]} Rae8 {[%emt 0:08:24]} 14. Rf3 {[%emt 0:01:03]} Re7 {[%emt 0:07:50]} 15. a4 {[%emt 0:06:27]} g6 {[%emt 0:13:06]} 16. Qh4 {[%emt 0:03:33]} e5 {[%emt 0:02:11]} 17. fxe5 {[%emt 0:00:12]} Bxe5 {[%emt 0:00:07]} 18. d4 {[%emt 0:02:02]} cxd4 {[%emt 0:02:14]} 19. exd4 {[%emt 0:01:19]} Bd6 {[%emt 0:05:57]} 20. c4 {[%emt 0:00:25]} Re2 {[%emt 0:02:15]} 21. Bc1 {[%emt 0:03:10]} g5 {[%emt 0:06:06]} 22. Qh5 {[%emt 0:02:44]} Qc8 {[%emt 0:02:47]} 23. Rxf6 {[%emt 0:02:03]} Rxg2+ {[%emt 0:01:00]} 24. Kxg2 {[%emt 0:00:15]} Rxf6 {[%emt 0:25:07]} 25. Kh1 {[%emt 0:06:39]} h6 {[%emt 0:00:00]} 26. Qe2 {[%emt 0:05:12]} Qf8 {[%emt 0:00:00]} 27. Kg1 {[%emt 0:00:09]} Rf4 {[%emt 0:00:00]} 28. Bb2 {[%emt 0:01:34]} Bh3 {[%emt 0:00:00]} 29. Nf1 {[%emt 0:04:52]} Rg4+ {[%emt 0:00:00]} 30. Ng3 {[%emt 0:00:05]} Bxg3 {[%emt 0:00:00]} 31. hxg3 {[%emt 0:00:23]} Rxg3+ {[%emt 0:00:00]} 32. Kh1 {[%emt 0:00:07]} Bg4 {[%emt 0:00:00]} 33. Qf1 {[%emt 0:02:15]} Qf3+ {[%emt 0:00:00]} 34. Qxf3 {[%emt 0:00:49]} Bxf3+ {[%emt 0:00:00]} 35. Kh2 {[%emt 0:00:12]} Rg2+ {[%emt 0:00:00]} 36. Kh3 {[%emt 0:00:07]} Rxb2 {[%emt 0:00:00]} 37. cxd5 {[%emt 0:00:08]} Bxd5 {[%emt 0:00:00]} 38. Re1 {[%emt 0:00:08]} h5 {[%emt 0:00:00]} 39. Re7 {[%emt 0:00:08]} Rxb3+ {[%emt 0:00:00]} 40. Kh2 {[%emt 0:00:10]} g4 {[%emt 0:00:00]} 41. a5 {[%emt 0:00:17]} Rh3+ {[%emt 0:00:00]} 42. Kg1 {[%emt 0:00:10]} g3 {[%emt 0:00:00]} 43. Kf1 {[%emt 0:00:12]} Rh1+ {[%emt 0:00:00]} 44. Ke2 {[%emt 0:00:06]} g2 {[%emt 0:00:00]} 0-1